Workbook

Sheet 全市经济
A1: 全市主要经济指标 | G1: （二）攀枝花生产总值
A2: （一）综合 | I2: 单位：万元
A3: 指标 | B3: 单位 | C3: 本月止累计 | D3: ±% | E3: 备注 | H3: 2019年 | I3: 累计±%
A4: 一、地区生产总值(GDP) | B4: 亿元 | C4: =10101349/10000 -> 1010.13 | D4: 6.3 | E4: 2019年 | G4: 地区生产总值 | H4: 10101349 | I4: 6.3
A5: 二、农林牧渔业总产值 | B5: 亿元 | C5: 140.12 | D5: 3.1 | E5: 2019年 | G5: # 第一产业增加值 | H5: 916803 | I5: 3.4
A6: 三、规上工业增加值 | B6: % | C6: - | D6: =B30 -> -0.1 | G6: 第二产业增加值 | H6: 5507442 | I6: 5.7
A7: 四、全社会固定资产投资 | B7: 亿元 | C7: - | D7: =H60 -> -4.2 | G7: 第三产业增加值 | H7: 3677104 | I7: 8.5
A8: 五、社会消费品零售总额 | B8: 亿元 | C8: =B94/10000 -> 31.26 | D8: =C94 -> -12.8 | G8: # 批发和零售业增加值 | H8: 756341 | I8: 13.9
A9: 六、城镇居民人均可支配收入 | B9: 元 | C9: =B150 -> 41864 | D9: =C150 -> 8.7 | E9: 2019年 | G9: 交通运输、仓储和邮政业增加值 | H9: 399245 | I9: 5.8
A10: 七、农村居民人均可支配收入 | B10: 元 | C10: =H150 -> 18352 | D10: =I150 -> 9.8 | E10: 2019年 | G10: 住宿和餐饮业增加值 | H10: 218064 | I10: 7.9
A11: 八、居民消费价格指数 | B11: % | C11: =I120 -> 107.6 | D11: =C11-100 -> 7.6 | G11: 金融业增加值 | H11: 220216 | I11: 2.5
A12: 工业生产者出厂价格指数 | B12: % | C12: =I138 -> 101.8 | D12: =C12-100 -> 1.8 | G12: 房地产业增加值 | H12: 360786 | I12: 1.4
A13: 九、一般公共预算收入 | B13: 亿元 | C13: =H95/10000 -> 9.42 | D13: =I95 -> -10.9 | E13: 同口径 | G13: 其他服务业增加值 | H13: 1705956 | I13: 9.5
A14: 一般公共预算支出 | B14: 亿元 | C14: =H100/10000 -> 20.17 | D14: =I100 -> 1.1
A15: 十、税务局组织收入 | B15: 亿元 | C15: =H105/10000 -> 17.16 | D15: =I105 -> -24.4 | G15: 三次产业贡献率 | H15: =H3 -> 2019年
A16: 其中：税收收入 | B16: 亿元 | C16: =H106/10000 -> 13.56 | D16: =I106 -> -34.1 | G16: 第一产业（%） | H16: 3.6
A17: 十一、金融机构人民币存款余额 | B17: 亿元 | C17: =B121/10000 -> 1077.07 | D17: =D121 -> -0.3 | E17: 比年初±% | G17: 第二产业（%） | H17: 60.5
A18: 金融机构人民币贷款余额 | B18: 亿元 | C18: =B133/10000 -> 800.53 | D18: =D133 -> -3.1 | E18: 比年初±% | G18: 第三产业（%） | H18: 35.9
A19: 十二、进出口总额 | B19: 亿元 | C19: =B101 -> 5.6 | D19: =C101 -> -29.9
A20: 其中：出口总额 | B20: 亿元 | C20: =B102 -> 1.7 | D20: =C102 -> 23.7 | G20: 说明：按《国民经济行业分类》（GB/T 4754—2017）和《三次产业划分规定》，第一产业指农、林、牧、渔业（不含农、林、牧、渔专业及辅助性活动）；第二产业指工业（不含开采专业及辅助性活动，金属制品、机械和设备修理业）和建筑业；第三产业即服务业，指除第一产业、第二产业以外的其他行业。
A21: 十三、招商引资当年到位资金 | B21: 亿元 | C21: =B106/10000 -> 774.28 | D21: =C106 -> 8.4 | E21: 2019年
A27: （三）工业 | G27: （三）工业
I28: 单位：万元
B29: 本月止 累计±% | G29: 规模以上工业企业经济效益 | H29: 2019年 | I29: ±%
A30: 一、规上工业增加值 | B30: -0.1 | G30: 企业单位数（个） | H30: 333
A31: # 轻工业 | B31: 0.3 | G31: 其中：亏损企业 | H31: 49
A32: 重工业 | B32: -0.1 | G32: 亏损面（%） | H32: 14.7 | I32: -0.6
A33: #黑色金属冶炼和压延加工业 | B33: -0.1 | G33: 流动资产合计 | H33: 9055856 | I33: 18.7
A34: 黑色金属矿采选业 | B34: -15.7 | G34: 其中：存货 | H34: 1070764 | I34: -9.5
A35: 化学原料和化学制品制造业 | B35: -6.5 | G35: 资产合计 | H35: 26176588 | I35: 16.0
A36: 煤炭开采和洗选业 | B36: -8.8 | G36: 负债合计 | H36: 16085905 | I36: 9.4
A37: 金属制品业 | B37: 4.7 | G37: 营业收入 | H37: 18456104 | I37: 5.7
A38: 石油、煤炭及其他燃料加工业 | B38: -8.2 | G38: 营业成本 | H38: 15942867 | I38: 6.6
A39: 电力、热力生产和供应业 | B39: 0.0 | G39: 利润总额 | H39: 1204048 | I39: 14.3
A40: 有色金属矿采选业 | B40: 17.0
A41: 非金属矿物制品业 | B41: 58.8
A42: 汽车制造业 | B42: 19.6
A43: 二、产销率（%） | B43: 95.0
A57: （四）能源 | G57: （五）投资
C59: 本月止累计 | D59: 累计±% | H59: 本月止 累计±% | I59: 占比%
A60: 一、规上工业综合能源消费量（万吨标准煤） | C60: 128.37 | D60: -7.6 | G60: 一、全社会固定资产投资 | H60: -4.2 | I60: 100
A61: （一）按工业行业分 | G61: # 项目投资 | H61: 2.3 | I61: 80.2
A62: 采矿业 | C62: 23.23 | D62: -16.6 | G62: # 民间投资 | H62: -6.1 | I62: 46
A63: 制造业 | C63: 104.51 | D63: -5.4 | G63: (一)按构成分
A64: 电力、热力、燃气及水生产和供应业 | C64: 0.62 | D64: 9.5 | G64: 1.建安工程 | H64: 0.4 | I64: 85.5
A65: （二）高耗能行业 | G65: 2.设备工器具购置 | H65: -12 | I65: 9.3
A66: 石油、煤炭及其他燃料加工业 | C66: 10.01 | D66: -13.9 | G66: 3.其他费用 | H66: -39.7 | I66: 5.2
A67: 化学原料和化学制品制造业 | C67: 9.97 | D67: -35.0 | G67: （二）按结构分
A68: 非金属矿物制品业 | C68: 2.20 | D68: -35.4 | G68: 1.基础设施投资 | H68: -7.5 | I68: 36.8
A69: 黑色金属冶炼和压延加工业 | C69: 76.16 | D69: 3.0 | G69: 2.产业投资 | H69: 40.2 | I69: 35.8
A70: 有色金属冶炼和压延加工业 | C70: 0.43 | D70: -12.3 | G70: 3.民生及社会事业投资 | H70: -31.3 | I70: 9.9
A71: 电力、热力生产和供应业 | C71: 0.31 | D71: -0.8 | G71: 4.房地产开发 | H71: -25.2 | I71: 16.6
A72: 二、全社会用电量(亿千瓦时) | C72: 20.36 | D72: -4.59 | G72: 5.其他投资 | H72: -62.8 | I72: 1.1
A73: 其中：工业用电量 | C73: 17.82 | D73: -5.46 | G73: (三)按行业分
A74: 三、规上工业新能源产品产量（亿千瓦时） | G74: 1.第一产业 | H74: 29.1 | I74: 4.3
A75: 风力发电量 | C75: 2.73 | D75: -1.55 | G75: 2.第二产业 | H75: 23.9 | I75: 37.9
A76: 太阳能发电量 | C76: 0.68 | D76: 6.18 | G76: # 工业 | H76: 27.8 | I76: 37.7
G77: 3.第三产业 | H77: -18 | I77: 57.8
H80: 本月止累计 | I80: 累计±%
G81: 二、商品房开发与销售（万平方米）
G82: (一)房屋施工面积 | H82: 480.43 | I82: -25.1
G83: # 住宅 | H83: 365.20 | I83: -10.7
G84: (二)房屋竣工面积 | H84: 7.70 | I84: -50.5
G85: # 住宅 | H85: 5.76 | I85: -47.4
G86: (三)商品房销售面积(含现房、期房） | H86: 8.08 | I86: -38.5
G87: # 住宅 | H87: 7.15 | I87: -39.5
G88: （四）商品房待售面积 | H88: 53.14 | I88: -19.4
G89: # 住宅 | H89: 13.84 | I89: -42.7
A91: （六）国内外贸易 | G91: （七）财政、税收
C92: 单位：万元 | I92: 单位：万元
B93: 本月止累计 | C93: 累计±% | H93: 本月止累计 | I93: 累计±%
A94: 一、社会消费品零售总额 | B94: 312592 | C94: -12.8 | G94: 一、地方财政收入
A95: (一)按经营地分 | G95: 1.一般公共预算收入 | H95: 94150 | I95: -10.9
A96: 城镇 | B96: 288679 | C96: -13.1 | G96: 其中：税收收入 | H96: 60973 | I96: -27.0
A97: 乡村 | B97: 23913 | C97: -8.2 | G97: 非税收入 | H97: 33177 | I97: 50.0
A98: (二)按消费形态分 | G98: 2.政府性基金收入 | H98: 20314 | I98: -51.4
A99: 餐饮收入 | B99: 45427 | C99: -32.9 | G99: 二、地方财政支出
A100: 商品零售 | B100: 267165 | C100: -8.1 | G100: 1.一般公共预算支出 | H100: 201667 | I100: 1.1
A101: 二、外贸进出口总额（亿元） | B101: 5.56 | C101: -29.9 | G101: 其中：一般公共服务
A102: 出口总额 | B102: 1.66 | C102: 23.7 | G102: 教育
A103: 进口总额 | B103: 3.90 | C103: -40.8 | G103: 社会保障和就业
G104: 2.政府性基金支出 | H104: 133272 | I104: 134.0
B105: 2019年 | C105: 累计±% | G105: 三、税务局组织收入总计 | H105: 171636 | I105: -24.4
A106: 三、招商引资当年到位资金额（万元） | B106: 7742837 | C106: 8.4 | G106: # 税收合计 | H106: 135601 | I106: -34.1
A107: 国内省外到位资金 | B107: 4016692 | C107: 6.0 | G107: # 第三产业 | H107: 61209 | I107: -14.8
A108: 省内到位资金 | B108: =B106-B107 -> 3726145 | C108: 11.1 | G108: # 增值税 | H108: 75388 | I108: -37.0
A109: 注：根据第四次全国经济普查结果对2019年社会消费品零售总额进行了修订，2020年增速按照可比口径计算。 | G109: 消费税 | H109: 3696 | I109: -29.8
G110: 注：在税务局组织收入总计累计数据中，出口退税1352万元，
G111: 其他收入2091万元。
A116: （八）金 融 | G116: （九）城市物价
D117: 单位：万元 | I117: 单位：%
B118: 本月末 | C118: 比年初增减 | G118: 城市物价(上年同期=100) | H118: 当月 | I118: 本月止 累计
C119: 绝对额 | D119: ±%
A120: 一、金融机构本外币各项存款余额 | B120: 10793210 | C120: -32122 | D120: -0.3 | G120: 一、居民消费价格总指数 | H120: 108.0 | I120: 107.6
A121: 金融机构人民币各项存款余额 | B121: 10770705 | C121: -35712 | D121: -0.3 | G121: # 消费品价格指数 | H121: 111.8 | I121: 110.7
A122: 1.住户存款 | B122: 7447070 | C122: 318455 | D122: 4.5 | G122: # 服务价格指数 | H122: 100.8 | I122: 101.8
A123: # 活期存款 | B123: 2502323 | C123: 175367 | D123: 7.5 | G123: 1.食品烟酒 | H123: 124.2 | I123: 121.6
A124: 定期及其他存款 | B124: 4944747 | C124: 143089 | D124: 3.0 | G124: 粮 食 | H124: 98.3 | I124: 98.4
A125: 2.非金融企业存款 | B125: 1526642 | C125: -212468 | D125: -12.2 | G125: 鲜 菜 | H125: 114.4 | I125: 118.1
A126: # 活期存款 | B126: 780597 | C126: -123918 | D126: -13.7 | G126: 畜 肉 | H126: 192.7 | I126: 174.4
A127: 定期及其他存款 | B127: 746045 | C127: -88550 | D127: -10.6 | G127: 水 产 品 | H127: 104.7 | I127: 103.9
A128: 3.广义政府存款 | B128: 1794416 | C128: -142146 | D128: -7.3 | G128: 蛋 | H128: 103.8 | I128: 101.6
A129: 财政性存款 | B129: 83245 | C129: -106734 | D129: -56.2 | G129: 鲜 果 | H129: 107.2 | I129: 107.1
A130: 机关团体存款 | B130: 1711171 | C130: -35412 | D130: -2.0 | G130: 2.衣着 | H130: 100.2 | I130: 100.3
A131: 4.非银行业金融机构存放 | B131: 1825 | C131: 490 | D131: 36.7 | G131: 3.居住 | H131: 101.6 | I131: 101.5
A132: 二、金融机构本外币各项贷款余额 | B132: 8026466 | C132: -261504 | D132: -3.2 | G132: 4.生活用品及服务 | H132: 100.1 | I132: 100.1
A133: 金融机构人民币各项贷款余额 | B133: 8005340 | C133: -257991 | D133: -3.1 | G133: 5.交通和通信 | H133: 99.8 | I133: 100.8
A134: 1.住户贷款 | B134: 1035512 | C134: -4147 | D134: -0.4 | G134: 6.教育文化和娱乐 | H134: 100.2 | I134: 102.2
A135: # 短期贷款 | B135: 210544 | C135: -18858 | D135: -8.2 | G135: 7.医疗保健 | H135: 101.9 | I135: 102.3
A136: 中长期贷款 | B136: 824968 | C136: 14711 | D136: 1.8 | G136: 8.其他用品和服务 | H136: 101.9 | I136: 102.9
A137: 2.非金融企业及机关团体贷款 | B137: 6969828 | C137: -253844 | D137: -3.5 | G137: 二、商品零售价格总指数 | H137: 108.3 | I137: 107.5
A138: # 短期贷款 | B138: 2012418 | C138: 40413 | D138: 2.1 | G138: 三、工业生产者出厂价格指数 | H138: 102.2 | I138: 101.8
A139: 中长期贷款 | B139: 3473498 | C139: 28859 | D139: 0.8 | G139: # 轻工业 | H139: 96.6 | I139: 95.4
A140: 票据融资 | B140: 1481612 | C140: -323066 | D140: -17.9 | G140: 重工业 | H140: 102.7 | I140: 102.4
A141: 3.非银行金融机构贷款 | G141: # 生产资料 | H141: 102.2 | I141: 101.9
A142: 三、金融机构外汇贷款余额（万美元） | B142: 3015 | C142: -517 | D142: -14.6 | G142: 生活资料 | H142: 99.0 | I142: 99.1
A143: 四、个人消费贷款余额 | B143: 1044295 | C143: 4637 | D143: =C143/(B143-C143)*100 -> 0.4 | G143: 四、工业生产者购进价格指数 | H143: 96.7 | I143: 97.3
A144: # 住房消费贷款 | B144: 485450 | C144: 12428 | D144: =C144/(B144-C144)*100 -> 2.6
A145: 汽车消费贷款 | B145: 1371 | C145: -88 | D145: -6.0
A146: 五、签发承兑汇票余额 | B146: 671046 | C146: -27633 | D146: -4.0
A147: （十）城镇居民生活 | G147: （十一）农村居民生活
C148: 单位：元 | I148: 单位：元
B149: 2019年 | C149: 累计±% | H149: =B149 -> 2019年 | I149: 累计±%
A150: 一、城镇居民人均可支配收入 | B150: 41864 | C150: 8.7 | G150: 一、农村居民人均可支配收入 | H150: 18352 | I150: 9.8
A151: 其中: 工资性收入 | B151: 25914 | C151: 8.1 | G151: 其中：工资性收入 | H151: 5644 | I151: 7.7
A152: 经营净收入 | B152: 6646 | C152: 16.6 | G152: 经营净收入 | H152: 11219 | I152: 12.4
A153: 财产净收入 | B153: 1854 | C153: 4.2 | G153: 财产净收入 | H153: 407 | I153: 0.8
A154: 转移净收入 | B154: 7451 | C154: 5.5 | G154: 转移净收入 | H154: 1082 | I154: 0.1
A155: 二、城镇居民人均消费性支出 | B155: 25792 | C155: 7.0 | G155: 二、农村居民人均生活消费支出 | H155: 13384 | I155: 7.3
A156: 其中：食品烟酒 | B156: 8401 | C156: 7.6 | G156: 其中：食品烟酒 | H156: 4421 | I156: 8.0
A157: 衣着 | B157: 1730 | C157: 7.9 | G157: 衣着 | H157: 525 | I157: 5.8
A158: 居住 | B158: 4167 | C158: 12.2 | G158: 居住 | H158: 2237 | I158: 8.3
A159: 生活用品及服务 | B159: 1738 | C159: 7.2 | G159: 生活用品及服务 | H159: 823 | I159: 4.6
A160: 医疗保健 | B160: 3889 | C160: 2.3 | G160: 交通和通信 | H160: 2370 | I160: 8.2
A161: 交通和通信 | B161: 2860 | C161: 5.8 | G161: 教育、文化和娱乐 | H161: 1334 | I161: 8.6
A162: 教育、文化和娱乐 | B162: 2293 | C162: 4.6 | G162: 医疗保健 | H162: 1439 | I162: 3.7
A163: 其他用品及服务 | B163: 714 | C163: 8.6 | G163: 其他用品及服务 | H163: 236 | I163: 2.4
